Cogmind - Beta 16 @@@ ROGUE MODE // 2025.11.10 @ 08:55:56 Player: Doobadoop Result: Destroyed by X-67 Chaingunner with Heavy Machine Gun Performance ------------- Evolutions (3) 1500 Regions Visited (8) 1600 Robots Destroyed (69) 345 Value Destroyed (2663) 2663 Prototype IDs (24) 480 Alien Tech Used (0) 0 Bonus (500) 500 TOTAL SCORE: 7088 Bonus ------- Pacifist 200 Aligned with FarCom 300 Cogmind --------- Core Integrity 0/700 Matter 283/300 Energy 100/100 System Corruption 2% Temperature Cool (0) Movement Rolling (100) Location -7/Factory Parts ------- > --- POWER (2) -------- (None) > --- PROPULSION (3) --- Armored Huge Wheel > --- UTILITY (5) ------ Advanced Terrain Scan Processor > --- WEAPON (3) ------- Power Maul > --- INVENTORY (5) ---- (None) Peak State ------------ > --- POWER ------------ Deuterium Engine Light Nuclear Core > --- PROPULSION ------- Wheel Armored Huge Wheel > --- UTILITY ---------- Scrap Suit Improved Terrain Scanner Advanced Terrain Scan Processor Hacking Suite > --- WEAPON ----------- Advanced Assault Cannon Molecular Scythe Molecular Scythe > --- INVENTORY -------- Armored Huge Wheel Armored Huge Wheel Advanced Assault Cannon [Rating: 55] Favorites ----------- Power Light Nuclear Core Engine Ion Engine Power Core Light Nuclear Core Propulsion Wheel Treads Light Treads Leg Aluminum Leg Wheel Wheel Hover Unit Antigrav System Utility Medium Storage Unit Device Improved Heat Sink Storage Medium Storage Unit Processor Advanced Terrain Scan Processor Hackware Hacking Suite Protection Hardened Medium Armor Plating Weapon Gatling Laser Energy Gun Gatling Laser Energy Cannon Heavy Particle Cannon Ballistic Gun Minigun Ballistic Cannon Advanced Assault Cannon Special Weapon Remote Datajack Impact Weapon Power Maul Slashing Weapon Molecular Scythe Build | -11 -10 -9 -9 -9 -8 -8 -8 -7 ------- Run | Yrd Mat Mat Min Exi Min Mat Sto Fac Slots Evolved 6 | . . 2 . . . 2 . 2 Power 1 | . . . . . . 1 . . Propulsion 1 | . . 1 . . . . . . Utility 3 | . . 1 . . . 1 . 1 Weapon 1 | . . . . . . . . 1 Parts Attached 72 | 6 1 6 . . 7 13 15 24 Power 12 | 1 . . . . 1 4 4 2 Engine 6 | 1 . . . . 1 2 1 1 Core 6 | . . . . . . 2 3 1 Reactor . | . . . . . . . . . Propulsion 26 | 2 . 3 . . 2 3 6 10 Treads 5 | . . . . . . 3 2 . Leg 9 | 2 . . . . . . 4 3 Wheel 9 | . . 3 . . 2 . . 4 Hover 3 | . . . . . . . . 3 Flight . | . . . . . . . . . Utility 17 | 1 1 3 . . 2 2 1 7 Device 8 | . 1 . . . 1 1 . 5 Storage 2 | 1 . 1 . . . . . . Processor 4 | . . 1 . . 1 1 . 1 Hackware 1 | . . . . . . . . 1 Protection 2 | . . 1 . . . . 1 . Artifact . | . . . . . . . . . Weapon 17 | 2 . . . . 2 4 4 5 Energy Gun 6 | 2 . . . . . 1 3 . Energy Cannon 4 | . . . . . 2 2 . . Ballistic Gun 1 | . . . . . . . 1 . Ballistic Cannon 1 | . . . . . . . . 1 Launcher . | . . . . . . . . . Special Weapon 1 | . . . . . . . . 1 Impact Weapon 1 | . . . . . . . . 1 Slashing Weapon 3 | . . . . . . 1 . 2 Piercing Weapon . | . . . . . . . . . Special Melee Weapon . | . . . . . . . . . Unidentified Prototypes 1 | . . . . . . . . 1 Parts Lost 29 | . . . . . 3 4 10 12 Power 9 | . . . . . . 3 4 2 Propulsion 9 | . . . . . 2 . 4 3 Utility 6 | . . . . . 1 1 1 3 Weapon 5 | . . . . . . . 1 4 Highest Loss Streak 9 | . . . . . 2 2 3 9 To Critical Strikes . | . . . . . . . . . Average Backups 7 | 2 7 7 10 10 9 6 7 4 Power . | . 1 1 1 1 1 . . . Propulsion 1 | . 3 1 2 2 1 . . 1 Utility 3 | . . 1 3 3 4 4 3 2 Weapon 2 | . 2 2 4 4 2 1 3 . Tool/Special . | . . . . . . . . . Unused Backups 13 | . 1 3 . 1 2 2 3 1 Power . | . . . . . . . . . Propulsion 3 | . . . . . 1 . 2 . Utility 5 | . . . . 1 1 1 1 1 Weapon 5 | . 1 3 . . . 1 . . Tool/Special . | . . . . . . . . . Average Slot Usage (%) 88 | . 97 91 100 100 99 81 84 82 Engine 7 | . 14 11 11 11 11 7 3 5 Core 4 | . . . . . . 4 8 7 Treads 4 | . . . . . . 10 14 . Leg 4 | . 28 . . . . . 6 8 Wheel 14 | . . 31 33 33 32 10 . 4 Device 10 | . 11 9 . . . 11 15 17 Storage 8 | . 14 11 11 11 11 9 9 3 Processor 10 | . . 3 11 11 20 8 6 4 Protection 2 | . . 1 11 11 1 6 2 . Energy Gun 8 | . 28 22 22 22 2 2 14 7 Energy Cannon 5 | . . . . . 18 5 . . Ballistic Gun 1 | . . . . . . . . 4 Slashing Weapon 2 | . . . . . . 4 2 5 Peak Build Rating 55 | 6 7 14 14 14 25 30 31 55 Average Rating 27 | 4 6 9 14 13 20 24 28 46 On Entrance 15 | . 6 7 14 14 14 23 30 29 Avg Prop Armor Cover (%) 7 | . . . . . . . 7 . Naked Turns . | . . . . . . . . . Heaviest Build 46 | 12 13 25 25 25 27 43 46 41 Greatest Support 62 | 20 20 30 30 30 30 62 62 52 Greatest Overweight (x) 12 | 1 . . . . 1 1 8 12 Average Overweight (x) . | . . . . . . . 1 . Largest Inventory Capacity 10 | 8 8 10 10 10 10 10 10 10 Average Capacity 9 | 7 8 8 10 10 10 10 10 7 Most Carried 10 | 4 8 10 10 10 10 9 10 10 Average Carried 8 | 2 7 7 10 9 9 7 9 5 Final Capacity 10 | 8 8 10 10 10 10 10 10 5 Final Carried 10 | 4 8 10 10 10 10 9 9 . Scrap Suit Usage (%) 24 | . . . . . . . . 97 Parts Cannibalized 17 | . . . . . . . . 17 Class Distribution -------------------- 50% | Mutant 20% | Assassin 12% | Skirmisher 10% | Scavenger-Skirmisher 5% | Scavenger-Mutant Dominant Class ---------------- Mutant | -10/Materials Mutant | -9/Materials Mutant | -9/Mines Mutant | -9/Exiles Mutant | -8/Mines Mutant | -8/Materials Scavenger-Skirmisher | -8/Storage Skirmisher | -7/Factory Resources | -11 -10 -9 -9 -9 -8 -8 -8 -7 ----------- Run | Yrd Mat Mat Min Exi Min Mat Sto Fac Matter Collected 1263 | 209 . 86 . . 90 231 248 399 Remotely 86 | . . 86 . . . . . . Salvage Created 3089 | . . 136 . . 261 598 1468 626 Parts 131 | . . 6 . . 15 21 63 26 Haulers Intercepted 1 | . . . . . . . . 1 Recyclers Shooed 5 | . . 1 . . 1 1 2 . Parts Field Recycled . | . . . . . . . . . Retrieved Matter . | . . . . . . . . . Parts Self-Destructed . | . . . . . . . . . Prevented . | . . . . . . . . . Parts Restored . | . . . . . . . . . Kills | -11 -10 -9 -9 -9 -8 -8 -8 -7 ------- Run | Yrd Mat Mat Min Exi Min Mat Sto Fac Combat Hostiles Destroyed 56 | . . 2 . . 5 10 27 12 Melee 11 | . . . . . . 4 1 6 Guns 31 | . . 2 . . . 1 26 2 Cannons 14 | . . . . . 5 5 . 4 Classes Destroyed 11 | . . 2 . . 2 1 1 5 Worker 1 | . . . . . . . . 1 Builder 3 | . . . . . 1 . 2 . Hauler 1 | . . . . . . . . 1 Recycler 6 | . . 1 . . 1 1 3 . Mechanic 1 | . . . . . . . . 1 Watcher 1 | . . . . . . . . 1 Swarmer 3 | . . . . . 3 . . . Grunt 34 | . . 2 . . 2 8 18 4 Sentry 15 | . . . . . . 2 8 5 Hunter 2 | . . . . . . . 1 1 Programmer 2 | . . . . . . . . 2 Best Kill Streak 4 | . . 3 . . 4 3 4 4 Combat Bots Only 4 | . . 2 . . 3 3 4 4 Max Kills in Single Turn 2 | . . 1 . . 2 1 1 1 Gunslinging . | . . . . . . . . . Exploded . | . . . . . . . . . Melee 1 | . . . . . . 1 1 1 Uniques/NPCs Destroyed . | . . . . . . . . . Combat | -11 -10 -9 -9 -9 -8 -8 -8 -7 -------- Run | Yrd Mat Mat Min Exi Min Mat Sto Fac Hostile Shots Fired 664 | . . 16 . . 33 53 166 396 Missed 182 | . . 1 . . 5 8 35 133 Hits 482 | . . 15 . . 28 45 131 263 Projectile 482 | . . 15 . . 28 45 131 263 Critical Strikes 10 | . . . . . 3 3 2 2 Damage Taken 6083 | . . 165 . . 320 697 1965 2936 Core 1149 | . . 47 . . 80 76 226 720 Absorbed by Shields . | . . . . . . . . . Regen/Repaired (Parts) 164 | . . . . . . . 36 128 Core Remaining (%) 78 | 100 100 . . . 68 . 45 . Volleys Fired 152 | . . 7 . 3 24 30 59 29 Largest 3 | . . 2 . 2 2 2 2 3 Hottest 185 | . . 80 . 80 150 150 160 185 Shots Fired 243 | . . 14 . 6 30 46 104 43 Gun 152 | . . 14 . 6 . 6 104 22 Cannon 91 | . . . . . 30 40 . 21 Launcher . | . . . . . . . . . Special . | . . . . . . . . . Kinetic 34 | . . . . . . . 5 29 Thermal 209 | . . 14 . 6 30 46 99 14 Explosive . | . . . . . . . . . Electromagnetic . | . . . . . . . . . Robot Hit Streak 18 | . . 8 . . 8 12 18 14 Robot Miss Streak 5 | . . 2 . . 5 2 4 2 Penetration Max . | . . . . . . . . . Secondary Targets 3 | . . . . . . . 3 . Max Gunslinging Chain 1 | . . . . . . . 1 . Shots Hit Robots 235 | . . 10 . . 17 40 94 74 Core Hits 141 | . . 6 . . 9 16 84 26 Critical Kills . | . . . . . . . . . Critical Parts Destroyed 2 | . . . . . . . . 2 Critical Strikes 5 | . . . . . . 1 . 4 Blast 2 | . . . . . . . . 2 Smash 2 | . . . . . . . . 2 Sever 1 | . . . . . . 1 . . Melee Attacks 88 | . . . . . . 22 22 44 Impact 15 | . . . . . . . . 15 Slashing 73 | . . . . . . 22 22 29 Piercing . | . . . . . . . . . Sneak Attacks 10 | . . . . . . 3 3 4 Combat Hostiles . | . . . . . . . . . Follow-up Attacks 8 | . . . . . . . . 8 Damage Inflicted 6942 | . . 111 . . 475 1154 2326 2876 Guns 2590 | . . 111 . . . 21 2063 395 Cannons 1524 | . . . . . 475 600 . 449 Explosions . | . . . . . . . . . Melee 2814 | . . . . . . 533 249 2032 Ramming 14 | . . . . . . . 14 . Kinetic 550 | . . . . . . . . 550 Thermal 3564 | . . 111 . . 475 621 2063 294 Explosive . | . . . . . . . . . Electromagnetic . | . . . . . . . . . Impact 500 | . . . . . . . . 500 Slashing 2314 | . . . . . . 533 249 1532 Piercing . | . . . . . . . . . Highest Corruption 7 | . . . . . . . 7 2 Average Corruption 1 | . . . . . . . 1 2 Corruption Purged . | . . . . . . . . . Corruption Blocked . | . . . . . . . . . Effects 20 | . . . . . . . 10 10 Message Errors 5 | . . . . . . . 3 2 Matter Fused 2 | . . . . . . . 1 1 Heat Flow Errors 5 | . . . . . . . 2 3 Data Loss (minor) 3 | . . . . . . . 1 2 Data Loss (major) 1 | . . . . . . . 1 . Misfires 3 | . . . . . . . 2 1 Weapon Failures 1 | . . . . . . . . 1 Overload Shots . | . . . . . . . . . Overflow Damage 321 | . . . . . 10 92 65 154 Projectiles 10 | . . . . . 10 . . . Explosions 33 | . . . . . . . 33 . Melee 278 | . . . . . . 92 32 154 Knockbacks . | . . . . . . . . . Impact . | . . . . . . . . . Kinetic . | . . . . . . . . . Secondary . | . . . . . . . . . Self-Inflicted Damage 80 | . . . . . . . 80 . Shots 1 | . . . . . . . 1 . Rammed 2 | . . . . . . . 2 . Targets Rammed 5 | 1 . . . . . . 4 . Kicked 3 | 1 . . . . . . 2 . Crushed . | . . . . . . . . . Highest Temperature 483 | . . 75 . 66 476 483 406 483 Average Temperature 125 | . . 38 . 28 159 169 101 141 Received Heat Transfer 2049 | . . 90 . . 162 423 936 438 Effects 16 | . . . . . 4 5 4 3 Shutdowns 5 | . . . . . 1 1 1 2 Energy Bleed 2 | . . . . . . 1 . 1 Interference 6 | . . . . . 3 . 3 . Matter Decay 2 | . . . . . . 2 . . Damage (minor) 1 | . . . . . . 1 . . Siege Activations . | . . . . . . . . . Martial Activations . | . . . . . . . . . Shielding Activations . | . . . . . . . . . Robots Disrupted . | . . . . . . . . . Combat Hostiles . | . . . . . . . . . Robots Corrupted . | . . . . . . . . . Combat Hostiles . | . . . . . . . . . Parts Fried . | . . . . . . . . . Impact Corruptions 4 | . . . . . . . . 4 Robots Melted . | . . . . . . . . . Combat Hostiles . | . . . . . . . . . Parts Melted 14 | . . . . . . 4 5 5 Heat Transferred 7216 | . . 250 . . 703 938 4675 650 Parts Sabotaged . | . . . . . . . . . Parts Stolen . | . . . . . . . . . Parts Stripped . | . . . . . . . . . Power Chain Reactions . | . . . . . . . . . Alert | -11 -10 -9 -9 -9 -8 -8 -8 -7 ------- Run | Yrd Mat Mat Min Exi Min Mat Sto Fac Maximum Alert Level 1 | . . . . . . . 1 . Low Security (%) 91 | 100 100 100 100 . 100 100 63 100 Level 1 8 | . . . . . . . 36 . Level 2 . | . . . . . . . . . Level 3 . | . . . . . . . . . Level 4 . | . . . . . . . . . Level 5 . | . . . . . . . . . High Security . | . . . . . . . . . Max Security . | . . . . . . . . . Peak Influence 312 | . . 45 . . 64 74 312 157 Initial 132 | . . . . . . 3 13 132 Average 50 | . . 10 . . 8 10 160 41 Influence Increases 1736 | . . 45 . . 115 286 885 405 Destroy 0b10 Robot/C 1068 | . . 40 . . 80 168 540 240 Destroy 0b10 Robot/NC 63 | . . 5 . . 8 5 25 20 Destroy Leader 264 | . . . . . 16 34 130 84 Successful Hack 21 | . . . . . . 4 3 14 Disable Machine 15 | . . . . . . . 15 . Destroy Structure 65 | . . . . . 11 15 37 2 Partial Spotted 15 | . . . . . . . . 15 Lose Combat Pursuer 225 | . . . . . . 60 135 30 Influence Decreases 1651 | . . 45 . . 104 266 625 611 Entered New Map 185 | . . . . . . 8 18 159 Time Decay 1211 | . . 45 . . 81 236 507 342 Lost Part 255 | . . . . . 23 22 100 110 Squads Dispatched 19 | . 2 1 . . . 1 5 10 Investigation 3 | . 1 1 . . . . 1 . Extermination 4 | . . . . . . . . 4 Reinforcement 9 | . 1 . . . . 1 4 3 Assault . | . . . . . . . . . Garrison 3 | . . . . . . . . 3 Intercept . | . . . . . . . . . Searches Triggered . | . . . . . . . . . Construction Impeded . | . . . . . . . . . Haulers Reinforced 1 | . . . . . . . . 1 Active Scanning Responses . | . . . . . . . . . Cargo Convoy Interrupts 1 | . . . . . . . . 1 Stealth | -11 -10 -9 -9 -9 -8 -8 -8 -7 --------- Run | Yrd Mat Mat Min Exi Min Mat Sto Fac Distress Signals 16 | . . 2 . . . 2 6 6 Communications Jammed . | . . . . . . . . . Distress Signals . | . . . . . . . . . Times Spotted 98 | . 1 8 . . 6 12 46 25 Peak Tracking Total 7 | . 1 4 . . 3 7 7 5 Tactical Retreats 8 | . . . . . . 2 4 2 Traps | -11 -10 -9 -9 -9 -8 -8 -8 -7 ------- Run | Yrd Mat Mat Min Exi Min Mat Sto Fac Traps Triggered 10 | . 1 1 . . . . 4 4 Indirectly . | . . . . . . . . . Trap Hack Attempts . | . . . . . . . . . Triggered . | . . . . . . . . . Disarmed . | . . . . . . . . . Reprogrammed . | . . . . . . . . . Reused . | . . . . . . . . . Traps Extracted . | . . . . . . . . . Installed . | . . . . . . . . . Triggered . | . . . . . . . . . Machines | -11 -10 -9 -9 -9 -8 -8 -8 -7 ---------- Run | Yrd Mat Mat Min Exi Min Mat Sto Fac Machines Disabled 1 | . . . . . . . 1 . Max in Single Turn 1 | . . . . . . . 1 . Machines Repaired . | . . . . . . . . . Machines Dismantled . | . . . . . . . . . Machines Sabotaged . | . . . . . . . . . Overloaded Fab Kills . | . . . . . . . . . Hacking | -11 -10 -9 -9 -9 -8 -8 -8 -7 --------- Run | Yrd Mat Mat Min Exi Min Mat Sto Fac Machines Accessed 11 | . . . . 5 . 3 2 1 Terminals 4 | . . . . . . 3 1 . Fabricators 1 | . . . . . . . . 1 Repair Stations 1 | . . . . . . . 1 . Recycling Units . | . . . . . . . . . Scanalyzers . | . . . . . . . . . Garrison Access . | . . . . . . . . . Total Hacks 59 | . . . . 50 . 3 5 1 Successful 56 | . . . . 50 . 2 3 1 Failed 3 | . . . . . . 1 2 . Catastrophic . | . . . . . . . . . Database Lockouts . | . . . . . . . . . Manual 2 | . . . . 1 . . 1 . Terminals 6 | . . . . . . 3 3 . Fabricators 1 | . . . . . . . . 1 Repair Stations 2 | . . . . . . . 2 . Recycling Units . | . . . . . . . . . Scanalyzers . | . . . . . . . . . Garrison Access . | . . . . . . . . . Terminal Hacks 53 | . . . . 50 . 2 1 . Record 49 | . . . . 49 . . . . Open Door 1 | . . . . . . . 1 . Alert Level 1 | . . . . . . 1 . . Locate Traps 1 | . . . . . . 1 . . Proto ID Catalog 1 | . . . . 1 . . . . Fabricator Hacks 1 | . . . . . . . . 1 Build 1 | . . . . . . . . 1 Repair Station Hacks 2 | . . . . . . . 2 . Scan Component 1 | . . . . . . . 1 . Repair 1 | . . . . . . . 1 . Recycling Unit Hacks . | . . . . . . . . . Scanalyzer . | . . . . . . . . . Garrison Access Hacks . | . . . . . . . . . Unauthorized Hacks . | . . . . . . . . . Terminals . | . . . . . . . . . Fabricators . | . . . . . . . . . Repair Stations . | . . . . . . . . . Recycling Units . | . . . . . . . . . Scanalyzers . | . . . . . . . . . Garrison Access . | . . . . . . . . . Data Cores Recovered . | . . . . . . . . . Used . | . . . . . . . . . Hacking Detections 4 | . . . . . . 2 2 . Full Trace Events 1 | . . . . . . . 1 . Feedback Events . | . . . . . . . . . Feedback Blocked . | . . . . . . . . . Robot Schematics Acquired . | . . . . . . . . . Robots Built . | . . . . . . . . . Authchips . | . . . . . . . . . Time . | . . . . . . . . . Total Robot Build Rating . | . . . . . . . . . Part Schematics Acquired . | . . . . . . . . . Parts Built 2 | . . . . . . . . 2 Authchips . | . . . . . . . . . Time 53 | . . . . . . . . 53 Total Part Build Rating 12 | . . . . . . . . 12 Part Studies Acquired . | . . . . . . . . . Parts Repaired 1 | . . . . . . . 1 . Time 38 | . . . . . . . 38 . Parts Recycled . | . . . . . . . . . Recycled Matter . | . . . . . . . . . Retrieved Matter . | . . . . . . . . . Retrieved Components . | . . . . . . . . . Parts Scanalyzed . | . . . . . . . . . Part Schematics Acquired . | . . . . . . . . . Parts Damaged . | . . . . . . . . . Bothacking | -11 -10 -9 -9 -9 -8 -8 -8 -7 ------------ Run | Yrd Mat Mat Min Exi Min Mat Sto Fac Used RIF Installer . | . . . . . . . . . Robots Hacked . | . . . . . . . . . Non-combat . | . . . . . . . . . Combat . | . . . . . . . . . Robot Hacks Applied . | . . . . . . . . . Relay Couplers Released . | . . . . . . . . . Fabnet Peak Effective % . | . . . . . . . . . Robots Rewired . | . . . . . . . . . Allies Hacked . | . . . . . . . . . Hacks Repelled . | . . . . . . . . . Allies | -11 -10 -9 -9 -9 -8 -8 -8 -7 -------- Run | Yrd Mat Mat Min Exi Min Mat Sto Fac Total Allies . | . . . . . . . . . Largest Group . | . . . . . . . . . Highest-Rated Group . | . . . . . . . . . Highest-Rated Ally . | . . . . . . . . . Total Orders . | . . . . . . . . . Ally Attacks . | . . . . . . . . . Total Damage . | . . . . . . . . . Kills . | . . . . . . . . . Allies Corrupted . | . . . . . . . . . Allies Melted . | . . . . . . . . . Intel | -11 -10 -9 -9 -9 -8 -8 -8 -7 ------- Run | Yrd Mat Mat Min Exi Min Mat Sto Fac Active Infowar (turns) 3876 | . . . . . . 427 1343 2106 Sensors 609 | . . . . . . . . 609 Terrain 3267 | . . . . . . 427 1343 1497 Robot Analysis Total . | . . . . . . . . . Derelict Logs Recovered . | . . . . . . . . . Drone Launches . | . . . . . . . . . Drone Recoveries . | . . . . . . . . . Exploration | -11 -10 -9 -9 -9 -8 -8 -8 -7 ------------- Run | Yrd Mat Mat Min Exi Min Mat Sto Fac Turns Passed 8685 | 100 202 195 21 562 2222 1425 1787 2171 Spaces Moved 4716 | 84 163 189 26 690 1061 554 589 1360 Core 33 | 24 . . . . . . 8 1 Treads 765 | . . . . . . 318 447 . Legs 715 | 60 163 . . . . . 134 358 Wheels 2987 | . . 189 26 690 1061 236 . 785 Hover 216 | . . . . . . . . 216 Flight . | . . . . . . . . . Fastest Speed 50 | 50 120 80 80 80 80 80 152 90 Average Speed 113 | 102 120 80 80 80 80 123 219 111 Slowest Speed 650 | 120 120 80 80 80 95 225 450 650 Overloaded Moves . | . . . . . . . . . Propulsion Burnouts . | . . . . . . . . . Robots Hopped . | . . . . . . . . . Potential Cave-ins . | . . . . . . . . . Cave-ins Triggered . | . . . . . . . . . Exploration Rate (%) 40 | 5 30 17 5 93 83 26 80 29 Regions Visited 8 Branch Regions 4 Pre-discovered Areas 2 | . . . 1 1 . . . . Known Exits Taken . | . . . . . . . . . Unknown Exits Taken 8 | 1 1 1 1 1 1 1 1 . Scrap Searched 1 | . . . . . 1 . . . Spaces Dug 26 | . . . . . . 10 16 . Terrain Destroyed 66 | . . . . . 11 17 36 2 Melee 19 | . . . . . . 3 16 . Projectile 27 | . . . . . 11 14 . 2 AOE 20 | . . . . . . . 20 . Terrain Rammed . | . . . . . . . . . Walls Destroyed . | . . . . . . . . . Machines Disabled . | . . . . . . . . . Actions | -11 -10 -9 -9 -9 -8 -8 -8 -7 --------- Run | Yrd Mat Mat Min Exi Min Mat Sto Fac Total 7667 | 94 169 221 25 694 2406 1217 919 1922 Wait 2504 | . . 5 . . 1299 577 203 420 Move 4710 | 84 162 188 25 689 1060 553 589 1360 Hop . | . . . . . . . . . Pick Up 53 | 4 5 8 . 1 8 7 6 14 Fast Attach 40 | 6 1 2 . . 1 9 11 10 Attach 26 | . . 3 . . 5 6 4 8 Detach 3 | . . . . . . 1 1 1 Swap 29 | . . 1 . . 1 2 13 12 Drop 68 | . 1 7 . 1 8 10 8 33 Fire 152 | . . 7 . 3 24 30 59 29 Melee 79 | . . . . . . 22 22 35 Ram . | . . . . . . . . . Kick 1 | . . . . . . . 1 . Crush 2 | . . . . . . . 2 . Escape Stasis . | . . . . . . . . . Rewire . | . . . . . . . . . Trap . | . . . . . . . . . Miscellaneous . | . . . . . . . . . Route ------- -11/Scrapyard -10/Materials -9/Materials -9/Mines -9/Exiles (discovered 2 exits: [*Min x2]) -8/Mines -8/Materials (discovered 2 exits: *Fac / *Sto) -8/Storage (discovered 2 exits: *Fac / [Rec]) -7/Factory History --------- Turn | Location | Event 46 | -11/Scrapyard | Discovered new exit (range 16) 101 | -11/Scrapyard | Entered Materials 284 | -10/Materials | Discovered new exit (range 16) 303 | -10/Materials | Entered another Materials area 303 | -9/Materials | Evolved 2 slots: Propulsion x1, Utility x1 328 | -9/Materials | Build established: Mutant 470 | -9/Materials | Discovered new exit (range 7) 498 | -9/Materials | Entered Mines 499 | -9/Mines | Learned location of Storage (-8) 513 | -9/Mines | Deemed a non-threat by the Exiles lab entrance 514 | -9/Mines | Discovered new exit (range 5) 519 | -9/Mines | Entered Exiles 542 | -9/Exiles | Discovered new exit (range 15) 609 | -9/Exiles | Met 8R-AWN 629 | -9/Exiles | Met EX-HEX 664 | -9/Exiles | Met EX-BIN 677 | -9/Exiles | Aligned with FarCom system 678 | -9/Exiles | Given EX-Vault access code 721 | -9/Exiles | Opened EX-Vault 723 | -9/Exiles | Found Prototype Processor 728 | -9/Exiles | Identified 0b10 Alert Chip 756 | -9/Exiles | Warned to stay clear of 0b10 Research branches 784 | -9/Exiles | Met EX-DEC 861 | -9/Exiles | Visited The Gauntlet 985 | -9/Exiles | Learned location of Zion (-6) 1067 | -9/Exiles | Discovered new exit (range 14) 1081 | -9/Exiles | Left Exiles lab with 0b10 Alert Chip 1081 | -9/Exiles | Entered Mines 1459 | -8/Mines | Found a Scrap Suit stashed away for nefarious purposes 1462 | -8/Mines | Found Scrap Suit 3293 | -8/Mines | Discovered new exit (range 8) 3303 | -8/Mines | Entered Materials 3303 | -8/Materials | Evolved 2 slots: Power x1, Utility x1 4576 | -8/Materials | Discovered new exit (range 16) 4612 | -8/Materials | Build established: Assassin 4712 | -8/Materials | Discovered new exit (range 16) 4728 | -8/Materials | Entered Storage 5369 | -8/Storage | Lost 3 parts (1p2n) 5729 | -8/Storage | Repaired Imp. Heat Sink 5977 | -8/Storage | Discovered new exit (range 13) 6033 | -8/Storage | Build established: Scavenger-Skirmisher 6072 | -8/Storage | Core integrity fell below 50% 6123 | -8/Storage | Lost 3 parts (1p1n1u) 6343 | -8/Storage | Build established: Scavenger-Mutant 6453 | -8/Storage | Discovered new exit (range 16) 6515 | -8/Storage | Entered Factory 6515 | -7/Factory | Evolved 2 slots: Utility x1, Weapon x1 6602 | -7/Factory | Fabricated Antigrav System (x2) 7099 | -7/Factory | Garrison activated, responded to threat 7106 | -7/Factory | Build established: Scavenger-Skirmisher 7417 | -7/Factory | Build established: Skirmisher 7717 | -7/Factory | Allied Derelicts ambushed cargo convoy from Garrison Access 7717 | -7/Factory | Cargo convoy interrupted 7735 | -7/Factory | Spotted IK-RU7(g) 7775 | -7/Factory | Lost 3 allies 8082 | -7/Factory | Build established: Assassin 8549 | -7/Factory | Noticed a derelict Sapper rigging charges 8641 | -7/Factory | Core integrity fell below 50% 8654 | -7/Factory | Core integrity fell below 20% 8686 | -7/Factory | Destroyed by X-67 Chaingunner with Heavy Machine Gun Last Messages --------------- 08651_ Y-54 Guardian suffers critical hit (Smash). 08651_ Destroyed Lgt. Treads. 08651_ Y-54 Guardian system corrupted by crushing effect. 08659_ Subcomponent Replicator disabled. 08662_ Y-54 Guardian destroyed. 08666_ Acquired 14 matter. 08667_ Acquired 8 matter. 08673_ U-05 Engineer lays Concrete. 08676_ Adv. Assault Cannon destroyed. 08676_ U-05 Engineer lays Concrete. 08679_ K-01 Serf collects debris. 08679_ U-05 Engineer lays Concrete. 08682_ K-01 Serf collects debris. 08682_ U-05 Engineer lays Concrete. 08683_ U-05 Engineer builds a Wall. 08684_ The unstable cave ceiling collapses. 08686_ K-01 Serf collects debris. [Achievement: Just Browsing] Map ----- +----------------------------------------------------+ | # # // ###??? | | # # #?#### | | # " " # ! #??##? | | # " " # [! | | # " " # [! | | # " " + | | # " " # | | # " " # """ | | # " " # """ | | # " " # """ | | # " " # | | # # """ | | # [# """ p | | ######## """ ############## | | # # ###?##??#??#??? | | # # """ # ? ????#?? | | # # """ # ? ????????? | | # # """ [? ????????? | | # !!! # # [? ? ??????? | | # !!! # [[? ???????? | | # !! + # ? ???????? | | # # k # ????????? | | # # u# ????????? | | # """ # #####+????????? | | # """ # ????????? | | # """ #@ ???????? | | # # ???????? | | ####### ???????? | | ?# ##### ???????? | | ## ?#### ####????????? | | ## ##### ##??????????? | | ##?#### ##? ????????? | | ## #### ### ? ??????? | | ####### #???????????? | | # # ###?????????? | | # """ # ### ????????? | | # """ # *= ##? ????????? | | # """ # ##??????????? | | # ""% #xx ????????? | | # " # i """ ????????? | | # " """ ????????? | | # "" # """ ????????? | | # """ # ?????????? | | # """ # """ ?+????????? | | # "" # """ # ????????? | | # "" # """ ??????????? | | # # ? ??????????? | | # # ? ?????????????? | | ######## ? ? ??????????? | | ##?????# ? ????????????? | +----------------------------------------------------+ Best States ------------- Heat Dissipation 48 Energy Generation 23 Energy Capacity 335 Matter Stores 300 Matter Capacity 300 Sight Range 16 Robot Scan Range 15 Terrain Scan Range 16 Terrain Scan Density 210 Armor Coverage 600 Evasion (%) 55 Targeting Accuracy 6 Recoil Reduction 3 Offensive Hacking 10 Item Schematics ----------------- None Robot Schematics ------------------ None Fabricated ------------ Antigrav System | x2 | -7/Factory | Preloaded Repaired ---------- Imp. Heat Sink | 10% | -8/Storage Studied --------- None Alien Tech Used ----------------- None Achievements -------------- Jackpot Just Browsing Just What I Needed Omniscient Cartographer Sixth Sense Challenges ------------ None Game ------ Seed DirectedSegregatorSaw Manual? 0 Play Time 00:54:21 Cumulative 18.7 hours Start 2025.11.10 @ 08:02:44 End 2025.11.10 @ 08:55:56 Sessions 1 Manual Loads 0 Difficulty Rogue Special Mode None Game No. 37 Rogue 35 Adventurer 2 Explorer 0 Win Type - Total 0 Types 0/0/0/0/0/0/0/0/0/0 Lore% 16 Gallery% 25 Achievement% 15 Wizard Run 0 Options --------- Layout 1 ASCII 0 Keyboard 0 Movement Arrows Keybinds 0 Fullscreen 1 Font 32/SmallcapsGlow Map View 50x35 Zoom Use 0% Tactical HUD 1 Map Filters NONE Filters NONE Steam 1 RUN: 9c422f2c-e9eb-408f-be71-24f8d506e8f6